bitfinex/quotes_ETHUSD_20250711
["timestamp","ask_amount","ask_price","bid_price","bid_amount"]
[1752274414910,0.001,2947.1,2947.0,10.719]
[1752274416888,0.001,2947.1,2947.0,11.1487]
[1752274417394,0.001,2947.1,2946.9,8.133]
[1752274417595,0.6224,2947.0,2946.9,8.133]
[1752274417803,0.6224,2947.0,2946.9,13.487]
[1752274419030,1.0763,2947.0,2946.9,8.133]
[1752274419387,1.0763,2947.0,2946.9,13.486]
[1752274421134,9.0763,2947.0,2946.9,13.486]
[1752274421632,9.6263,2947.0,2946.9,13.486]
[1752274424648,0.55,2946.9,2946.8,0.002]
[1752274424963,11.6263,2946.9,2946.8,5.354]
[1752274425306,1.6263,2946.9,2946.8,5.354]
[1752274426018,9.6263,2946.9,2946.8,5.354]
[1752274428023,9.6263,2946.9,2946.8,0.002]
[1752274428237,9.6263,2946.9,2946.8,5.353]
[1752274428476,19.6263,2946.9,2946.8,0.002]
[1752274428614,0.55,2946.6,2946.0,8.134]
[1752274428816,0.55,2946.4,2946.1,5.351]
[1752274429048,0.4387,2946.3,2946.1,5.351]
[1752274429251,0.55,2946.6,2946.1,5.351]
[1752274429412,0.4387,2946.2,2946.1,5.351]
[1752274429627,0.55,2946.6,2946.1,5.351]
[1752274429827,0.55,2946.4,2946.1,5.351]
[1752274430027,0.9887,2946.4,2946.1,5.351]
[1752274430454,0.4387,2946.3,2946.1,5.351]
[1752274430816,8.0,2946.2,2946.1,5.351]
[1752274431545,9.0611,2946.2,2946.1,5.351]
[1752274432556,9.0611,2946.2,2944.9,10.002]
[1752274432557,10.55,2946.1,2944.9,0.002]
[1752274432859,0.55,2945.7,2944.9,0.002]
[1752274433213,20.95570618,2946.1,2944.9,0.002]
[1752274433214,0.6224,2945.3,2944.9,0.002]
[1752274433515,11.1724,2945.0,2944.9,0.002]
[1752274433710,11.1724,2945.0,2944.9,5.352]
[1752274433962,19.6111,2945.0,2944.9,5.352]
[1752274435049,18.6224,2945.0,2944.9,5.352]
[1752274435284,8.0,2945.0,2944.9,5.352]
[1752274435484,8.0,2945.0,2944.9,5.8221]
[1752274436058,8.0,2945.2,2944.9,5.8221]
[1752274437147,8.0,2945.2,2945.0,0.4701]
[1752274437346,8.0,2945.2,2945.1,5.35]
[1752274437545,8.0,2945.2,2945.1,5.8201]
[1752274438043,8.0,2945.5,2945.1,5.8201]
[1752274438240,8.0,2945.5,2945.2,1.3293]
[1752274438445,8.0,2945.5,2945.2,1.36325355]
[1752274438644,8.0,2945.5,2945.3,5.8201]
[1752274438840,8.0,2945.8,2945.4,0.4701]
[1752274439046,8.0,2945.8,2945.5,5.35]
[1752274439642,8.0,2945.8,2945.5,5.8201]
[1752274439848,8.0,2945.8,2945.6,0.4701]
[1752274440061,8.6224,2946.2,2945.6,0.4701]
[1752274440510,8.0,2946.2,2945.7,0.89284778]
[1752274440712,8.0,2946.2,2945.8,5.8191]
[1752274440875,8.0,2946.2,2945.9,0.4701]
[1752274441074,8.0,2946.4,2945.9,0.4701]
[1752274441913,0.4387,2946.3,2945.7,0.8589]
[1752274442111,0.6174,2946.2,2945.8,5.349]
[1752274442315,0.4387,2946.1,2945.8,5.349]
[1752274442518,0.6174,2946.2,2945.8,5.349]
[1752274442717,0.4387,2946.0,2945.8,5.349]
[1752274443013,0.1696,2945.8,2945.1,0.4701]
[1752274443213,1.93992535,2945.7,2945.2,5.349]
[1752274443516,0.4387,2945.6,2945.2,5.349]
[1752274443713,0.4387,2945.6,2945.0,0.8589]
[1752274444010,0.1696,2945.0,2944.9,0.002]
[1752274444175,0.1696,2945.0,2944.9,5.35]
[1752274444786,0.1696,2945.0,2944.9,0.002]
[1752274444988,0.1696,2945.0,2944.9,5.35]
[1752274446134,8.1696,2945.0,2944.9,5.35]
[1752274447336,8.6083,2945.0,2944.9,0.002]
[1752274447639,8.6083,2945.0,2944.9,5.35]
[1752274449203,8.1696,2945.0,2944.9,5.35]
[1752274450041,8.1696,2945.0,2944.9,5.8201]
[1752274450915,0.1696,2945.0,2944.9,5.8201]
[1752274451530,0.1696,2945.0,2944.9,8.24837701]
[1752274451740,0.1696,2945.0,2944.9,8.21442]
[1752274453055,0.1696,2945.0,2944.9,1.3802]
[1752274453352,0.1696,2945.0,2944.9,6.7272]
[1752274460052,0.1696,2945.0,2944.9,1.3802]
[1752274460265,0.1696,2945.0,2944.9,6.7252]
[1752274460938,0.1696,2945.0,2944.9,6.2551]
[1752274461274,0.1696,2945.0,2944.9,5.346]
[1752274462163,0.1696,2945.0,2944.9,0.002]
[1752274462336,0.1696,2945.0,2944.9,5.346]
[1752274464325,0.1696,2945.0,2944.9,0.002]
[1752274464557,0.1696,2945.0,2944.9,5.345]
[1752274466067,8.1696,2945.0,2944.9,5.345]
[1752274466770,8.1696,2945.0,2944.9,0.002]
[1752274466771,8.6059,2945.0,2944.9,0.002]
[1752274466929,9.2233,2945.0,2944.9,5.345]
[1752274468234,9.2233,2945.0,2944.9,0.002]
[1752274468479,8.1696,2945.0,2944.9,5.345]
[1752274469794,8.6059,2945.0,2944.9,0.002]
[1752274470084,9.2245,2945.0,2944.9,5.344]
[1752274470939,9.2245,2945.0,2944.9,0.002]
[1752274471152,9.2245,2945.0,2944.9,5.344]
[1752274472734,9.7745,2945.0,2944.9,5.344]
[1752274474086,9.7745,2945.0,2944.9,5.343]
[1752274476673,9.2245,2945.0,2944.9,5.343]
[1752274478789,9.7745,2945.0,2944.9,0.002]
[1752274479104,9.7745,2945.0,2944.9,5.342]
[1752274479288,19.7745,2945.0,2944.9,5.342]
[1752274479488,1.1686,2944.8,2944.7,8.134]
[1752274479915,1.1686,2944.6,2944.5,0.002]
[1752274480285,1.78235,2944.6,2944.5,0.002]
[1752274480612,1.78235,2944.6,2944.5,5.341]
[1752274481497,1.78235,2944.6,2944.5,0.002]
[1752274481680,1.78235,2944.6,2944.5,5.341]
[1752274482997,9.78235,2944.6,2944.5,5.341]
[1752274484550,9.78235,2944.6,2944.1,0.002]
[1752274484551,2.586,2944.5,2944.1,0.002]
[1752274484693,10.95570618,2944.2,2944.1,0.002]
[1752274484893,11.57430618,2944.2,2944.1,0.002]
[1752274485124,12.01060618,2944.2,2944.1,0.002]
[1752274485792,14.59660618,2944.2,2944.1,0.002]
[1752274485992,12.56060618,2944.2,2944.1,0.002]
[1752274486192,20.56060618,2944.2,2944.1,0.002]
[1752274487968,30.56060618,2944.2,2944.1,0.002]
[1752274491053,19.6049,2944.2,2944.1,0.002]
[1752274491988,30.56060618,2944.2,2944.1,0.002]
[1752274492769,11.1686,2944.1,2942.5,1.3223]
[1752274492971,0.55,2943.6,2942.5,0.8808]
[1752274493268,1.1686,2943.4,2942.5,0.002]
[1752274493571,1.1686,2943.4,2942.8,5.337]
[1752274493764,1.6434,2943.4,2942.8,5.337]
[1752274493966,1.6434,2943.4,2942.5,0.002]
[1752274493967,0.55,2943.2,2942.5,0.002]
[1752274494266,0.55,2943.0,2942.5,0.002]
[1752274494770,0.4748,2942.9,2942.5,0.002]
[1752274495142,0.55,2942.7,2942.5,0.002]
[1752274495584,10.6186,2943.1,2942.6,0.4415]
[1752274495585,0.6186,2943.1,2942.6,0.4415]
[1752274495758,10.0,2943.3,2942.7,0.4415]
[1752274496073,0.6186,2943.8,2942.9,0.9095]
[1752274496372,0.6186,2943.8,2943.0,0.4415]
[1752274496575,0.6186,2944.6,2943.1,0.9095]
[1752274496730,0.6186,2944.6,2943.2,0.4415]
[1752274496731,10.6186,2944.6,2943.2,0.4415]
[1752274497071,8.0,2943.5,2943.3,0.9095]
[1752274497434,8.0,2943.5,2943.4,0.4415]
[1752274497635,8.0,2943.5,2943.4,1.351]
[1752274498170,8.0,2944.0,2943.4,1.351]
[1752274498485,8.0,2944.0,2943.5,5.81147316]
[1752274498627,8.0,2944.0,2943.6,0.4415]
[1752274498829,8.0,2944.0,2943.7,0.9095]
[1752274499071,8.0,2943.9,2943.8,0.4415]
[1752274500551,8.0,2943.9,2943.8,5.7775]
[1752274501249,8.0,2943.9,2943.8,5.336]
[1752274502438,8.0,2943.9,2943.8,5.335]
[1752274502778,8.0,2943.9,2943.8,5.7765]
[1752274502936,8.0,2943.9,2943.8,6.6514]
[1752274503132,8.0,2944.3,2943.8,6.6514]
[1752274503332,8.0,2944.3,2943.9,0.4415]
[1752274503536,8.0,2944.3,2944.0,0.4415]
[1752274504483,0.55,2944.7,2943.8,6.2099]
[1752274504781,10.3189,2945.1,2944.2,0.8072]
[1752274504950,8.0,2944.4,2944.3,5.334]
[1752274505152,0.1696,2944.2,2944.0,0.8072]
[1752274505350,0.1696,2944.2,2944.0,1.2487]
[1752274505555,0.1696,2944.0,2943.8,0.8072]
[1752274505875,8.4748,2944.4,2943.9,5.334]
[1752274506060,8.0,2944.1,2943.9,5.334]
[1752274507047,0.4748,2944.3,2943.9,5.334]
[1752274508665,0.001,2944.5,2943.9,5.334]
[1752274509002,8.0,2944.2,2944.0,0.4415]
[1752274509655,8.0,2944.2,2944.1,0.4415]
[1752274511558,8.0,2944.2,2944.1,1.2228]
[1752274511989,8.0,2944.4,2944.1,1.2228]
[1752274512189,8.0,2944.4,2944.2,0.4415]
[1752274512394,8.0,2944.4,2944.1,0.7813]
[1752274512395,8.0,2944.4,2944.3,5.7725]
[1752274514689,8.0,2944.4,2944.3,6.5538]
[1752274514858,8.0,2944.4,2944.3,6.5528]
[1752274515775,8.0,2944.4,2944.3,1.2228]
[1752274515976,8.0,2944.4,2944.3,6.5528]
[1752274518402,8.0,2944.4,2944.3,1.2228]
[1752274518601,8.0,2944.4,2944.3,6.5518]
[1752274519057,8.001,2944.5,2944.3,6.5518]
[1752274519261,8.001,2944.5,2944.4,0.4716]
[1752274520100,0.001,2944.5,2944.4,0.4716]
[1752274520315,0.001,2944.5,2944.4,1.94289]
[1752274520465,0.001,2944.5,2944.4,12.89859618]
[1752274521711,8.0,2945.2,2944.5,0.8131]
[1752274522028,0.001,2945.3,2944.7,0.8131]
[1752274522524,0.001,2945.3,2944.8,0.4716]
[1752274522827,0.001,2945.3,2944.9,6.1401]
[1752274523224,0.001,2945.3,2945.0,0.4716]
[1752274523633,0.1696,2945.0,2944.9,6.1401]
[1752274523787,0.1696,2945.0,2944.9,6.17405701]
[1752274524201,0.1696,2945.0,2944.9,6.6117]
[1752274524402,0.1696,2945.0,2944.9,8.43489722]
[1752274525644,0.001,2945.3,2945.2,11.76740618]
[1752274525866,0.001,2945.3,2945.2,27.09240618]
[1752274526066,0.1706,2945.3,2945.2,27.09240618]
[1752274526265,0.001,2945.3,2945.2,28.11400618]
[1752274526544,0.1706,2945.7,2945.4,0.8117]
[1752274526750,0.1706,2945.7,2945.3,10.0]
[1752274526751,0.1706,2945.7,2945.6,11.76740618]
[1752274527260,0.1706,2945.7,2945.6,12.23900618]
[1752274527408,0.1706,2945.7,2945.6,14.8093068]
[1752274527605,0.1706,2945.7,2945.6,3.85360062]
[1752274527850,0.1706,2945.7,2945.6,6.6073]
[1752274528017,0.1706,2945.7,2945.6,1.2833]
[1752274528253,0.1706,2945.7,2945.6,6.6073]
[1752274528452,0.1706,2945.7,2945.6,17.56300618]
[1752274528762,0.1706,2945.7,2945.6,1.2833]
[1752274529058,0.1706,2945.7,2945.6,7.54853]
[1752274529902,0.1706,2945.7,2945.6,2.22553]
[1752274530106,0.1706,2945.7,2945.6,7.54853]
[1752274530348,0.1706,2945.7,2945.6,2.22553]
[1752274530568,0.1706,2945.7,2945.6,7.54853]
[1752274531169,0.1706,2945.7,2945.6,2.22553]
[1752274531323,0.1706,2945.7,2945.6,6.6053]
[1752274531509,0.1706,2945.7,2945.6,0.8117]
[1752274531852,0.1706,2945.7,2945.5,8.139]
[1752274532015,8.1706,2945.7,2945.6,5.322]
[1752274533113,8.1706,2945.7,2945.6,5.7936]
[1752274533552,8.1706,2945.7,2945.6,7.95526]
[1752274533950,0.1706,2945.7,2945.6,7.95526]
[1752274536926,0.001,2945.7,2945.6,17.95526]
[1752274537478,0.001,2945.7,2945.6,17.95226]
[1752274537930,0.001,2945.7,2945.6,12.63326]
[1752274538129,0.001,2945.7,2945.6,17.95226]
[1752274538443,0.001,2945.7,2945.6,7.95226]
[1752274539469,0.001,2945.7,2945.6,2.63326]
[1752274539770,0.001,2945.7,2945.6,7.98620894]
[1752274539960,0.001,2945.7,2945.6,17.95226]
[1752274542872,0.001,2945.7,2945.6,17.95026]
[1752274544142,0.001,2945.7,2945.6,7.18186]
[1752274544485,0.001,2945.7,2945.6,7.97436]
[1752274547873,0.001,2945.7,2945.6,7.97336]
[1752274548076,0.001,2945.7,2945.6,7.97236]
[1752274549986,0.001,2945.7,2945.6,2.65736]
[1752274550173,0.001,2945.7,2945.6,8.00630894]
[1752274550373,0.001,2945.7,2945.6,7.97236]
[1752274551693,0.001,2945.7,2945.6,2.65736]
[1752274551866,0.001,2945.7,2945.6,8.00530894]
[1752274552078,0.001,2945.7,2945.6,7.97136]
[1752274552904,0.001,2945.7,2945.6,7.93246]
[1752274553090,0.001,2945.7,2945.6,2.61846]
[1752274553271,0.001,2945.7,2945.6,7.93146]
[1752274554306,0.001,2945.7,2945.6,7.49876]
[1752274554468,0.001,2945.7,2945.6,5.313]
[1752274554667,0.001,2945.7,2945.5,8.141]
[1752274554981,0.001,2945.7,2945.6,5.313]
[1752274555495,0.001,2945.7,2945.6,5.34694894]
[1752274555857,0.001,2945.7,2945.6,6.61014894]
[1752274556007,0.001,2945.7,2945.6,9.18083445]
[1752274556177,0.001,2945.7,2945.6,9.14688551]
[1752274557103,0.1706,2945.7,2945.6,9.14688551]
[1752274557306,0.001,2946.2,2945.6,9.69688551]
[1752274557491,0.001,2946.2,2946.1,11.78620618]
[1752274557690,0.001,2946.2,2946.1,18.2768268]
[1752274557691,0.1706,2946.2,2946.1,18.2768268]
[1752274558018,0.001,2946.2,2946.1,19.2595268]
[1752274558172,0.001,2946.4,2946.3,0.8305]
[1752274558512,0.001,2946.4,2946.3,6.72644087]
[1752274558713,0.001,2946.5,2946.4,0.8305]
[1752274558874,0.001,2946.5,2946.4,1.2632]
[1752274559836,0.001,2946.5,2946.4,11.29713972]
[1752274560050,0.001,2946.5,2946.4,11.2632]
[1752274560373,0.1696,2946.7,2946.5,0.55]
[1752274560572,0.001,2946.9,2946.6,17.53104359]
[1752274560573,0.1706,2946.9,2946.6,17.53104359]
[1752274560720,0.1706,2946.9,2946.6,17.49710618]
[1752274560913,0.1706,2946.9,2946.7,0.46663626]
[1752274561250,0.1706,2946.9,2946.8,7.06310424]
[1752274561456,0.1706,2946.9,2946.8,7.49580424]
[1752274564459,0.1706,2946.9,2946.8,2.01357597]
[1752274564629,0.1706,2946.9,2946.8,5.309]
[1752274564837,0.6358,2946.9,2946.8,5.309]
[1752274565955,0.1706,2946.9,2946.8,5.309]
[1752274566161,0.1706,2946.9,2946.8,13.441]
[1752274566359,0.1706,2946.9,2946.8,8.132]
[1752274566862,0.1706,2946.9,2946.8,13.44]
[1752274567844,0.1706,2946.9,2946.8,8.132]
[1752274568040,0.1706,2946.9,2946.8,13.44]
[1752274572278,0.1706,2946.9,2946.8,8.132]
[1752274572443,0.6358,2946.9,2946.8,13.438]
[1752274572980,1.1262,2946.9,2946.8,8.132]
[1752274573279,1.6762,2946.9,2946.8,8.132]
[1752274573479,1.6762,2946.9,2946.8,13.438]
[1752274574774,1.6762,2946.9,2946.8,8.132]
[1752274574985,1.6762,2946.9,2946.4,0.002]
[1752274574986,1.1858,2946.9,2946.4,0.002]
[1752274575188,0.55,2946.7,2946.5,5.306]
[1752274575476,1.0152,2946.6,2946.5,5.306]
[1752274575676,1.0404,2946.6,2946.5,5.306]
[1752274575904,1.5056,2946.6,2946.5,5.306]
[1752274576185,19.5056,2946.6,2946.5,5.306]
[1752274576984,11.5056,2946.6,2946.5,5.306]
[1752274578055,19.5056,2946.6,2946.5,5.306]
[1752274579282,8.4904,2946.6,2946.5,5.306]
[1752274579795,8.0,2946.6,2946.5,5.306]
[1752274579983,8.0,2946.7,2946.5,5.306]
[1752274580140,0.4676,2946.6,2946.4,0.002]
[1752274580481,0.1696,2946.5,2946.4,0.002]
[1752274580682,1.1276,2946.5,2946.4,0.002]
[1752274581586,1.6776,2946.5,2946.4,5.307]
[1752274581987,9.6776,2946.5,2946.4,5.307]
[1752274585181,9.6776,2946.5,2946.4,5.306]
[1752274586410,19.6776,2946.5,2946.4,5.306]
[1752274589708,18.66,2946.5,2946.4,5.306]
[1752274590220,19.1276,2946.5,2946.4,5.306]
[1752274592904,18.66,2946.5,2946.4,5.306]
[1752274596114,19.1276,2946.5,2946.4,5.306]
[1752274600024,19.6776,2946.5,2946.4,5.302]
[1752274601015,21.7136,2946.5,2946.4,5.302]
[1752274601238,0.55,2946.1,2945.5,0.002]
[1752274601518,0.55,2945.6,2945.5,0.002]
[1752274602057,14.49970618,2945.6,2945.5,0.002]
[1752274602207,24.68643349,2945.6,2945.5,0.002]
[1752274602407,24.49970618,2945.6,2945.5,0.002]
[1752274603057,32.49970618,2945.6,2945.5,0.002]
[1752274603663,33.2236912,2945.6,2945.5,0.002]
[1752274604848,22.26798502,2945.6,2945.5,0.002]
[1752274605253,21.544,2945.6,2945.5,0.002]
[1752274606254,19.508,2945.6,2945.5,0.002]
[1752274606614,30.46370618,2945.6,2945.5,0.002]
[1752274607028,32.49970618,2945.6,2945.5,0.002]
[1752274607231,0.55,2945.0,2944.9,5.299]
[1752274607523,10.55,2945.0,2944.9,5.299]
[1752274607737,11.0127,2945.0,2944.9,5.299]
[1752274608139,19.0127,2945.0,2944.9,5.299]
[1752274613579,19.5031,2945.0,2944.9,5.299]
[1752274613738,19.5031,2945.0,2944.9,5.298]
[1752274614340,18.55,2945.0,2944.9,5.298]
[1752274614804,8.0,2945.0,2944.9,5.298]
[1752274614946,0.25683764,2945.8,2944.9,6.5394]
[1752274614947,8.0,2945.1,2944.9,6.5394]
[1752274615146,18.0,2945.1,2944.9,1.2414]
[1752274615491,18.0,2945.1,2945.0,5.298]
[1752274616014,18.0,2945.1,2945.0,5.758]
[1752274616180,10.0,2945.1,2945.0,5.758]
[1752274616581,0.001,2945.6,2945.0,7.22564]
[1752274616784,0.001,2945.6,2945.1,0.46]
[1752274616945,10.0,2945.2,2945.1,0.46]
[1752274617439,8.0,2945.3,2945.1,0.46]
[1752274617634,8.0,2945.3,2945.2,0.46]
[1752274619203,8.0,2945.3,2945.2,1.2414]
[1752274619548,8.0,2945.3,2945.2,0.7814]
[1752274619753,8.0,2945.3,2945.2,1.2414]
[1752274619957,8.001,2945.6,2945.2,1.2414]
[1752274620167,8.001,2945.6,2945.3,5.757]
[1752274620376,8.001,2945.6,2945.3,5.297]
[1752274620570,8.001,2945.6,2945.4,0.46]
[1752274620780,8.001,2945.6,2945.5,0.7731]
[1752274620995,0.001,2945.6,2945.5,1.2331]
[1752274621361,0.001,2945.6,2945.5,5.296]
[1752274621561,0.001,2945.6,2945.5,5.756]
[1752274622210,0.001,2945.6,2945.5,5.296]
[1752274622694,10.4637,2945.6,2945.0,0.7731]
[1752274622895,0.55,2945.3,2944.9,0.002]
[1752274623095,0.55,2945.3,2945.1,5.296]
[1752274623302,0.4904,2945.4,2945.1,5.296]
[1752274623456,10.0,2945.5,2945.2,0.7731]
[1752274623657,10.0,2945.5,2944.9,0.002]
[1752274623958,10.0,2945.5,2945.0,5.296]
[1752274624396,10.0,2945.5,2945.0,5.756]
[1752274624597,10.0,2945.5,2945.1,0.46]
[1752274624899,10.0,2945.5,2945.0,5.296]
[1752274625071,8.0,2945.1,2945.0,5.296]
[1752274625772,8.0,2945.1,2945.0,5.756]
[1752274626484,8.0,2945.1,2945.0,0.46]
[1752274626700,8.0,2945.1,2945.0,5.755]
[1752274627399,8.0,2945.1,2945.0,0.46]
[1752274627582,8.0,2945.1,2945.0,5.295]
[1752274627987,8.0,2945.1,2945.0,5.755]
[1752274629007,8.0,2945.1,2945.0,5.294]
[1752274629605,8.0,2945.1,2945.0,5.754]
[1752274629968,8.0,2945.1,2945.0,0.46]
[1752274630304,8.0,2945.1,2945.0,5.754]
[1752274630705,8.0,2945.1,2945.0,0.46]
[1752274631049,10.001,2945.6,2945.0,6.5847]
[1752274631050,8.0,2945.5,2945.0,6.5847]
[1752274631204,8.0,2945.5,2945.0,6.1247]
[1752274631379,10.0,2945.4,2945.1,0.46]
[1752274631579,10.0,2945.4,2945.2,5.753]
[1752274631906,10.0,2945.4,2945.3,0.46]
[1752274633421,8.0,2945.5,2945.3,0.46]
[1752274633623,8.0,2945.5,2945.4,5.293]
[1752274633991,0.001,2945.6,2945.4,5.753]
[1752274635107,8.0,2945.5,2945.4,5.753]
[1752274636012,8.0,2945.5,2945.4,5.293]
[1752274636595,8.0,2945.5,2945.0,0.8307]
[1752274636806,0.1696,2945.1,2945.0,1.2907]
[1752274637023,0.1696,2945.1,2945.0,5.292]
[1752274637322,0.1696,2945.1,2945.0,0.442]
[1752274637614,0.1696,2945.1,2945.0,5.292]
[1752274637977,8.1696,2945.1,2945.0,5.292]
[1752274638399,8.1696,2945.1,2945.0,5.734]
[1752274639602,8.1696,2945.1,2945.0,6.5283]
[1752274640076,0.1696,2945.1,2945.0,6.5283]
[1752274643331,0.1696,2945.1,2945.0,1.2363]
[1752274643537,0.1696,2945.1,2945.0,6.5263]
[1752274644104,0.1696,2945.1,2945.0,6.56025585]
[1752274646724,0.1696,2945.1,2945.0,6.5263]
[1752274646934,0.1696,2945.1,2945.0,9.08820062]
[1752274647223,0.1696,2945.3,2945.1,0.8275]
[1752274647427,0.1696,2945.3,2945.2,6.59245355]
[1752274648386,0.001,2945.6,2945.3,0.8275]
[1752274648583,0.1696,2945.5,2945.4,6.14945124]
[1752274648794,0.1696,2945.5,2945.4,6.76439636]
[1752274648989,0.1696,2945.5,2945.4,7.17244512]
[1752274651291,0.1696,2945.5,2945.4,6.5565]
[1752274651687,0.1696,2945.5,2945.2,0.752]
[1752274651891,0.001,2945.6,2945.3,5.729]
[1752274652206,0.001,2945.6,2945.3,5.76295239]
[1752274652416,0.001,2945.6,2945.4,0.442]
[1752274652723,0.001,2945.6,2945.5,5.286]
[1752274653635,0.001,2945.6,2945.5,5.728]
[1752274653840,0.001,2945.6,2945.5,6.07094402]
[1752274654138,0.001,2945.6,2945.5,6.82294402]
[1752274657727,0.001,2945.6,2945.5,6.82194402]
[1752274659150,0.001,2945.6,2945.5,1.09494402]
[1752274659353,0.001,2945.6,2945.5,6.479]
[1752274659752,0.001,2945.6,2945.5,1.194]
[1752274660049,0.001,2945.6,2945.5,6.478]
[1752274662275,0.001,2945.6,2945.5,6.035]
[1752274662411,0.001,2945.6,2945.5,6.477]
[1752274662723,0.001,2945.6,2945.3,0.7847]
[1752274662911,0.001,2945.6,2945.4,5.283]
[1752274664937,0.001,2945.6,2945.5,0.47595009]
[1752274665124,0.001,2945.6,2945.5,1.1303151]
[1752274665513,0.001,2945.6,2945.5,1.8965151]
[1752274670657,0.001,2945.6,2945.5,1.86256501]
[1752274670846,0.001,2945.6,2945.5,6.4892]
[1752274671028,0.001,2945.6,2945.5,6.52315009]
[1752274671234,0.001,2945.6,2945.5,6.4892]
[1752274673526,0.001,2945.6,2945.5,6.52315009]
[1752274675080,0.001,2945.6,2945.5,1.2082]
[1752274675357,0.001,2945.6,2945.5,6.4872]
[1752274675760,0.001,2945.6,2945.5,5.279]
[1752274675966,0.001,2945.6,2945.5,5.7098]
[1752274677184,0.001,2945.6,2945.5,5.74375009]
[1752274677361,0.1696,2945.5,2945.1,0.7662]
[1752274677685,0.1696,2945.3,2945.2,5.7098]
[1752274677883,0.001,2945.6,2945.2,6.39155355]
[1752274678086,0.001,2945.6,2945.3,7.72045983]
[1752274678288,0.001,2945.6,2945.5,0.7662]
[1752274678494,0.1706,2945.6,2945.5,0.7662]
[1752274678670,0.1706,2945.6,2945.5,3.38696598]
[1752274679270,0.001,2945.6,2945.5,3.93696598]
[1752274679796,0.001,2945.6,2945.5,3.97091607]
[1752274680752,0.001,2945.6,2945.5,14.90019507]
[1752274680956,0.001,2945.6,2945.5,14.86624498]
[1752274682395,0.001,2945.6,2945.5,24.86624498]
[1752274683428,0.001,2946.5,2945.8,0.55]
[1752274683561,0.1706,2946.5,2946.4,0.7666]
[1752274683987,0.1706,2946.5,2946.4,5.276]
[1752274686179,0.66,2946.4,2945.5,2.94936598]
[1752274686399,0.473,2946.3,2945.6,5.276]
[1752274686593,0.473,2946.3,2945.5,0.7594]
[1752274686794,0.66,2946.2,2945.6,5.276]
[1752274687125,1.133,2946.2,2945.6,5.276]
[1752274687436,1.133,2946.2,2945.7,0.03394778]
[1752274687611,0.473,2946.1,2945.8,5.275]
[1752274687779,0.1696,2945.7,2945.4,8.135]
[1752274687974,0.1696,2945.7,2945.5,5.275]
[1752274688212,0.473,2945.6,2945.5,5.275]
[1752274688598,0.1696,2945.5,2945.4,8.135]
[1752274688809,0.1696,2945.5,2945.4,13.41]
[1752274689592,0.8296,2945.5,2945.4,13.41]
[1752274690641,1.3026,2945.5,2945.4,13.41]
[1752274690864,0.1696,2945.5,2945.4,13.41]
[1752274692138,0.6426,2945.5,2945.4,13.41]
[1752274692337,0.6426,2945.5,2945.4,8.135]
[1752274692504,0.6426,2945.5,2945.4,13.409]
[1752274695744,0.6426,2945.5,2945.4,8.135]
[1752274695900,0.6426,2945.5,2945.4,13.409]
[1752274697410,0.1696,2945.5,2945.4,13.409]
[1752274698305,0.1696,2945.5,2945.4,13.8488]
[1752274698510,0.1696,2945.5,2945.4,13.409]
[1752274704566,0.1696,2945.5,2945.4,13.8488]
[1752274705113,0.1696,2945.5,2945.4,15.31229]
[1752274705318,0.1696,2945.5,2945.4,22.60614848]
[1752274706571,0.1696,2945.5,2945.4,22.16634848]
[1752274707465,0.1696,2945.5,2945.4,14.87449]
[1752274711392,0.1696,2945.5,2945.4,13.411]
[1752274712233,0.1696,2945.5,2945.4,13.407]
[1752274715288,0.1696,2945.5,2945.4,13.406]
[1752274719773,0.1696,2945.5,2945.4,13.8458]
[1752274720860,0.1696,2945.5,2945.4,14.6554]
[1752274721058,0.1696,2945.5,2945.4,23.41279848]
[1752274721255,0.1696,2945.5,2945.4,16.11994]
[1752274725212,0.1696,2945.5,2945.4,9.3864]
[1752274725426,0.1696,2945.5,2945.4,14.6534]
[1752274726019,0.1696,2945.5,2945.4,8.9466]
[1752274726219,0.1696,2945.5,2945.4,13.403]
[1752274728915,0.1696,2945.5,2945.4,13.8386]
[1752274729081,0.1696,2945.5,2945.4,16.77719585]
[1752274729510,0.01958901,2945.5,2945.4,16.77719585]
[1752274739442,0.0023992,2945.5,2945.4,16.77719585]
[1752274743460,0.0023992,2945.5,2945.4,27.32719585]
[1752274743765,0.001,2945.6,2945.5,18.63255848]
[1752274743935,7.85,2946.4,2945.9,0.55]
[1752274744137,7.85,2946.4,2945.8,0.7907]
[1752274744138,0.1706,2946.5,2946.4,0.7907]
[1752274744341,0.1706,2946.5,2946.4,6.08563972]
[1752274744641,0.1706,2946.5,2946.4,6.52123972]